Cogmind - Beta 13 @@@ ROGUE MODE // 2024.04.13 @ 21:40:23 Player: Olafz Result: Destroyed by X-57 Shotgunner with Shotgun Performance ------------- Evolutions (2) 1000 Regions Visited (7) 1400 Robots Destroyed (62) 310 Value Destroyed (1601) 1601 Prototype IDs (33) 660 Alien Tech Used (0) 0 Bonus (520) 520 TOTAL SCORE: 5491 Bonus ------- Follower Combat Kills 220 Aligned with FarCom 300 Cogmind --------- Core Integrity 0/550 Matter 295/300 Energy 34/100 System Corruption 2% Temperature Hot (270) Movement Hovering (46) Location -8/Materials Parts ------- > --- POWER (1) -------- (None) > --- PROPULSION (2) --- Aerolev Unit Aerolev Unit > --- UTILITY (6) ------ Lightpack 2.0 Weight Redist. System Advanced Visual Processing Unit Melee Analysis Suite > --- WEAPON (2) ------- Heavy Hammer > --- INVENTORY (40) --- Nuclear Core Light Nuclear Core Armored Treads Aluminum Leg Aerolev Unit Faulty Aerolev Unit Aerolev Unit Faulty Aerolev Unit Faulty Improved VTOL Module Heat Sink Improved Heat Sink Advanced Weight Redist. System Advanced Weight Redist. System Melee Analysis Suite Target Analyzer Actuator Array Makeshift Transmission Jammer Reaction Control System Hardened Heavy Armor Plating Graphene Brace Small Laser Light Assault Rifle Minigun Heavy Mace Peak State ------------ > --- POWER ------------ Light Deuterium Engine > --- PROPULSION ------- Aerolev Unit Aerolev Unit > --- UTILITY ---------- Lightpack 2.0 Weight Redist. System Advanced Visual Processing Unit Melee Analysis Suite > --- WEAPON ----------- Mace Heavy Hammer > --- INVENTORY -------- Nuclear Core Light Nuclear Core Armored Treads Aluminum Leg Aerolev Unit Aerolev Unit Aerolev Unit Aerolev Unit Improved VTOL Module Heat Sink Improved Heat Sink Advanced Weight Redist. System Advanced Weight Redist. System Melee Analysis Suite Target Analyzer Actuator Array Makeshift Transmission Jammer Reaction Control System Hardened Heavy Armor Plating Graphene Brace Small Laser Light Assault Rifle Minigun Heavy Mace [Rating: 61] Favorites ----------- Power Ion Engine Engine Ion Engine Power Core Nuclear Core Propulsion Improved Aluminum Leg Treads Armored Treads Leg Improved Aluminum Leg Wheel Wheel Hover Unit Aerolev Unit Utility Visual Processing Unit Device Improved Heat Sink Storage Large Storage Unit Processor Visual Processing Unit Protection Medium Armor Plating Weapon Heavy Hammer Energy Gun Particle Gun Energy Cannon Beam Cannon Ballistic Gun Assault Rifle Ballistic Cannon Improved Light Cannon Special Weapon Mining Laser Impact Weapon Heavy Hammer Build | -11 -10 -10 -9 -9 -9 -8 -8 ------- Run | Yrd Mat Min Mat Min Exi Min Mat Slots Evolved 4 | . . . 2 . . . 2 Power . | . . . . . . . . Propulsion . | . . . . . . . . Utility 4 | . . . 2 . . . 2 Weapon . | . . . . . . . . Parts Attached 63 | . 7 9 6 5 1 4 31 Power 10 | . 1 1 1 1 . 1 5 Engine 8 | . 1 1 1 1 . . 4 Core 2 | . . . . . . 1 1 Reactor . | . . . . . . . . Propulsion 21 | . 2 4 2 . . 2 11 Treads 3 | . . 2 . . . . 1 Leg 13 | . 2 . 2 . . 2 7 Wheel 2 | . . 2 . . . . . Hover 3 | . . . . . . . 3 Flight . | . . . . . . . . Utility 11 | . 2 . 1 2 1 . 5 Device 5 | . . . 1 1 . . 3 Storage 2 | . 1 . . . 1 . . Processor 3 | . 1 . . . . . 2 Hackware . | . . . . . . . . Protection 1 | . . . . 1 . . . Artifact . | . . . . . . . . Weapon 21 | . 2 4 2 2 . 1 10 Energy Gun 5 | . . 1 . 1 . . 3 Energy Cannon 1 | . 1 . . . . . . Ballistic Gun 10 | . 1 2 . 1 . 1 5 Ballistic Cannon 1 | . . . 1 . . . . Launcher . | . . . . . . . . Special Weapon 1 | . . 1 . . . . . Impact Weapon 3 | . . . 1 . . . 2 Slashing Weapon . | . . . . . . . . Piercing Weapon . | . . . . . . . . Special Melee Weapon . | . . . . . . . . Unidentified Prototypes 2 | . . . . . . . 2 Parts Lost 30 | . . 10 . 2 . 1 17 Power 6 | . . 2 . . . . 4 Propulsion 11 | . . 4 . . . 1 6 Utility 3 | . . . . 1 . . 2 Weapon 10 | . . 4 . 1 . . 5 Highest Loss Streak 10 | . . 10 . 2 . 1 8 To Critical Strikes . | . . . . . . . . Average Slot Usage (%) 88 | . 93 94 80 95 83 74 76 Engine 8 | . 14 12 7 11 11 4 1 Core 2 | . . . . . . 6 7 Leg 21 | . 28 24 16 22 22 19 16 Device 6 | . . . 7 11 6 . 11 Storage 11 | . 14 14 11 11 11 11 9 Processor 11 | . 8 14 11 11 11 11 12 Protection 2 | . . . . 7 . . . Energy Gun 1 | . . 1 7 . . . 5 Energy Cannon 2 | . 2 12 . . . . . Ballistic Gun 10 | . 25 12 . 2 11 21 9 Ballistic Cannon 2 | . . . 3 8 . . . Impact Weapon 4 | . . . 2 11 11 . 2 Naked Turns . | . . . . . . . . Heaviest Build 40 | 14 28 28 33 40 30 12 20 Greatest Support 33 | 20 20 20 26 26 26 33 33 Greatest Overweight (x) 6 | . 1 6 1 1 1 . 1 Average Overweight (x) . | . . 1 . 1 . . . Largest Inventory Capacity 40 | . 15 15 15 15 40 40 40 Average Capacity 22 | . 10 15 15 15 25 40 40 Most Carried 34 | . 10 10 8 11 11 11 34 Average Carried 13 | . 7 9 5 10 9 9 26 Final Capacity 40 | 8 15 15 15 15 40 40 40 Final Carried 25 | 6 10 2 8 11 8 11 25 Class Distribution -------------------- 38% | Scavenger-Mutant 30% | Mutant 29% | Hauler-Mutant Dominant Class ---------------- Mutant | -10/Materials Mutant | -10/Mines Scavenger-Mutant | -9/Materials Scavenger-Mutant | -9/Mines Scavenger-Mutant | -9/Exiles Hauler-Mutant | -8/Mines Hauler-Mutant | -8/Materials Resources | -11 -10 -10 -9 -9 -9 -8 -8 ----------- Run | Yrd Mat Min Mat Min Exi Min Mat Matter Collected 1243 | 200 175 77 . 200 . 77 514 Remotely . | . . . . . . . . Salvage Created 2034 | . 436 29 . 298 . 147 1124 Parts 117 | . 24 . . 24 . 9 60 Haulers Intercepted 1 | . . . . . . . 1 Recyclers Shooed . | . . . . . . . . Parts Field Recycled . | . . . . . . . . Retrieved Matter . | . . . . . . . . Parts Self-Destructed . | . . . . . . . . Prevented . | . . . . . . . . Kills | -11 -10 -10 -9 -9 -9 -8 -8 ------- Run | Yrd Mat Min Mat Min Exi Min Mat Combat Hostiles Destroyed 51 | . 9 2 . 11 . 3 26 Melee 11 | . . . . 6 . . 5 Guns 34 | . 9 2 . 3 . 3 17 Classes Destroyed 13 | . 4 1 . 2 . 1 5 Worker 1 | . . . . . . . 1 Builder 2 | . . . . 1 . . 1 Tunneler 1 | . . . . 1 . . . Hauler 1 | . . . . . . . 1 Recycler 3 | . 1 . . . . . 2 Watcher 3 | . 2 . . . . . 1 Swarmer 22 | . 3 . . 6 . . 13 Grunt 20 | . 6 . . 5 . 2 7 Brawler 1 | . . . . . . 1 . Sentry 4 | . . . . . . . 4 Demolisher 2 | . . 2 . . . . . Specialist 1 | . . . . . . . 1 Heavy 1 | . . . . . . . 1 Best Kill Streak 6 | . 6 1 . 3 . 2 6 Combat Bots Only 6 | . 4 1 . 3 . 2 6 Max Kills in Single Turn 2 | . 2 1 . 1 . 1 2 Gunslinging 1 | . . . . . . . 1 Exploded . | . . . . . . . . Melee 1 | . . . . 1 . . 1 Uniques/NPCs Destroyed . | . . . . . . . . Combat | -11 -10 -10 -9 -9 -9 -8 -8 -------- Run | Yrd Mat Min Mat Min Exi Min Mat Hostile Shots Fired 399 | . 43 25 11 63 . 28 229 Missed 101 | . 12 1 5 13 . 10 60 Damage Taken 4534 | . 358 969 149 491 . 269 2298 Core 1060 | . 19 202 56 100 . 123 560 Absorbed by Shields . | . . . . . . . . Core Remaining (%) 47 | 100 . 11 . . . 30 . Volleys Fired 155 | . 29 17 12 7 . 23 67 Largest 2 | . 2 2 1 1 . 2 2 Hottest 90 | . 80 80 40 40 . 40 90 Shots Fired 275 | . 58 29 12 7 . 46 123 Gun 257 | . 51 26 5 6 . 46 123 Cannon 18 | . 7 3 7 1 . . . Launcher . | . . . . . . . . Special . | . . . . . . . . Kinetic 202 | . 51 13 7 4 . 46 81 Thermal 73 | . 7 16 5 3 . . 42 Explosive . | . . . . . . . . Electromagnetic . | . . . . . . . . Robot Hit Streak 9 | . 7 7 5 2 . 7 9 Robot Miss Streak 4 | . 3 3 3 2 . 2 4 Penetration Max . | . . . . . . . . Secondary Targets 5 | . 2 . . . . 2 1 Max Gunslinging Chain 1 | . 1 . . . . 1 1 Shots Hit Robots 219 | . 35 14 9 25 . 32 104 Core Hits 88 | . 20 5 1 9 . 12 41 Critical Kills 4 | . 1 . . 1 . . 2 Critical Parts Destroyed 5 | . . . . 1 . 1 3 Critical Strikes 11 | . 1 . . 2 . 1 7 Burn 2 | . . . . . . . 2 Destroy 2 | . 1 . . . . 1 . Smash 7 | . . . . 2 . . 5 Melee Attacks 55 | . . . . 27 . . 28 Impact 55 | . . . . 27 . . 28 Slashing . | . . . . . . . . Piercing . | . . . . . . . . Sneak Attacks 3 | . . . . 3 . . . Combat Hostiles 1 | . . . . 1 . . . Follow-up Attacks 2 | . . . . . . . 2 Damage Inflicted 4228 | . 489 210 150 1008 . 267 2104 Guns 2154 | . 419 176 43 43 . 267 1206 Cannons 211 | . 70 34 107 . . . . Explosions . | . . . . . . . . Melee 1863 | . . . . 965 . . 898 Ramming . | . . . . . . . . Kinetic 1608 | . 419 85 107 20 . 267 710 Thermal 757 | . 70 125 43 23 . . 496 Explosive . | . . . . . . . . Electromagnetic . | . . . . . . . . Impact 1863 | . . . . 965 . . 898 Slashing . | . . . . . . . . Piercing . | . . . . . . . . Highest Corruption 2 | . . . . . . . 2 Average Corruption 2 | . . . . . . . 2 Corruption Purged . | . . . . . . . . Corruption Blocked . | . . . . . . . . Effects 8 | . . . . . . . 8 Message Errors 1 | . . . . . . . 1 Matter Fused 2 | . . . . . . . 2 Heat Flow Errors 1 | . . . . . . . 1 Energy Discharges 2 | . . . . . . . 2 Data Loss (minor) 1 | . . . . . . . 1 Misfires 1 | . . . . . . . 1 Overload Shots . | . . . . . . . . Overflow Damage 359 | . . . . 168 . . 191 Projectiles . | . . . . . . . . Explosions . | . . . . . . . . Melee 359 | . . . . 168 . . 191 Knockbacks 6 | . . . 1 1 . . 4 Impact 4 | . . . . 1 . . 3 Kinetic 1 | . . . 1 . . . . Secondary 1 | . . . . . . . 1 Self-Inflicted Damage . | . . . . . . . . Shots . | . . . . . . . . Rammed . | . . . . . . . . Targets Rammed . | . . . . . . . . Kicked . | . . . . . . . . Crushed . | . . . . . . . . Highest Temperature 440 | . 126 24 . . . 41 440 Average Temperature 68 | . 41 18 . . . 16 155 Received Heat Transfer 1008 | . 156 . 36 87 . 180 549 Effects 1 | . . . . . . . 1 Interference 1 | . . . . . . . 1 Siege Activations . | . . . . . . . . Robots Corrupted . | . . . . . . . . Combat Hostiles . | . . . . . . . . Parts Fried 10 | . . . . 4 . . 6 Impact Corruptions 19 | . . . . 9 . . 10 Robots Melted . | . . . . . . . . Combat Hostiles . | . . . . . . . . Parts Melted 4 | . . . . . . . 4 Heat Transferred 1904 | . 148 274 100 50 . . 1332 Parts Sabotaged . | . . . . . . . . Parts Stolen . | . . . . . . . . Parts Stripped . | . . . . . . . . Power Chain Reactions . | . . . . . . . . Alert | -11 -10 -10 -9 -9 -9 -8 -8 ------- Run | Yrd Mat Min Mat Min Exi Min Mat Peak Influence 343 | . 259 37 124 160 . 60 343 Initial 48 | . . 37 7 48 . . 23 Average 86 | . 122 23 79 69 . 50 136 Maximum Alert Level 1 | . 1 . . . . . 1 Low Security (%) 88 | . 72 100 100 100 . 100 72 Level 1 11 | . 27 . . . . . 27 Level 2 . | . . . . . . . . Level 3 . | . . . . . . . . Level 4 . | . . . . . . . . Level 5 . | . . . . . . . . High Security . | . . . . . . . . Max Security . | . . . . . . . . Squads Dispatched 7 | . 1 . . 1 . . 5 Investigation 5 | . 1 . . 1 . . 3 Extermination . | . . . . . . . . Reinforcement 2 | . . . . . . . 2 Assault . | . . . . . . . . Garrison . | . . . . . . . . Intercept . | . . . . . . . . Searches Triggered . | . . . . . . . . Construction Impeded . | . . . . . . . . Haulers Reinforced . | . . . . . . . . Active Scanning Responses . | . . . . . . . . Cargo Convoy Interrupts . | . . . . . . . . Stealth | -11 -10 -10 -9 -9 -9 -8 -8 --------- Run | Yrd Mat Min Mat Min Exi Min Mat Distress Signals 1 | . 1 . . . . . . Communications Jammed . | . . . . . . . . Distress Signals . | . . . . . . . . Times Spotted 74 | . 11 2 5 12 . 3 41 Peak Tracking Total 7 | . 5 2 3 4 . 3 7 Tactical Retreats 5 | . . . . 1 . . 4 Traps | -11 -10 -10 -9 -9 -9 -8 -8 ------- Run | Yrd Mat Min Mat Min Exi Min Mat Traps Triggered 3 | . . . 1 1 . . 1 Indirectly . | . . . . . . . . Trap Hack Attempts . | . . . . . . . . Triggered . | . . . . . . . . Disarmed . | . . . . . . . . Reprogrammed . | . . . . . . . . Reused . | . . . . . . . . Traps Extracted . | . . . . . . . . Installed . | . . . . . . . . Triggered . | . . . . . . . . Machines | -11 -10 -10 -9 -9 -9 -8 -8 ---------- Run | Yrd Mat Min Mat Min Exi Min Mat Machines Disabled 1 | . . . . . . . 1 Max in Single Turn 1 | . . . . . . . 1 Machines Repaired . | . . . . . . . . Machines Dismantled . | . . . . . . . . Machines Sabotaged . | . . . . . . . . Overloaded Fab Kills . | . . . . . . . . Hacking | -11 -10 -10 -9 -9 -9 -8 -8 --------- Run | Yrd Mat Min Mat Min Exi Min Mat Machines Accessed 15 | . 6 . . 2 1 . 6 Terminals 12 | . 6 . . 1 . . 5 Fabricators . | . . . . . . . . Repair Stations . | . . . . . . . . Recycling Units 1 | . . . . . . . 1 Scanalyzers . | . . . . . . . . Garrison Access . | . . . . . . . . Total Hacks 54 | . 26 . . 3 1 . 24 Successful 31 | . 16 . . 1 1 . 13 Failed 23 | . 10 . . 2 . . 11 Catastrophic 4 | . 2 . . . . . 2 Database Lockouts . | . . . . . . . . Manual 23 | . 11 . . 2 1 . 9 Terminals 51 | . 26 . . 2 . . 23 Fabricators . | . . . . . . . . Repair Stations . | . . . . . . . . Recycling Units 1 | . . . . . . . 1 Scanalyzers . | . . . . . . . . Garrison Access . | . . . . . . . . Terminal Hacks 20 | . 11 . . 1 1 . 7 Prototype ID Bank 5 | . 3 . . . . . 2 Open Door 1 | . . . . 1 . . . Branch Access Points 1 | . 1 . . . . . . Emergency Access Points 3 | . 1 . . . . . 2 Terminal Index 1 | . 1 . . . . . . Alert Level 2 | . . . . . . . 2 Unreport Threat 1 | . . . . . . . 1 Locate Traps 1 | . 1 . . . . . . Dispatch Records 1 | . 1 . . . . . . Investigation Status 1 | . 1 . . . . . . Hauler Manifests 1 | . 1 . . . . . . Zone Layout 1 | . 1 . . . . . . Derelict Proto ID Bank 1 | . . . . . 1 . . Fabricator Hacks . | . . . . . . . . Repair Station Hacks . | . . . . . . . . Recycling Unit Hacks 1 | . . . . . . . 1 Retrieve Components 1 | . . . . . . . 1 Scanalyzer . | . . . . . . . . Garrison Access Hacks . | . . . . . . . . Unauthorized Hacks 10 | . 5 . . . . . 5 Terminals 10 | . 5 . . . . . 5 Botnet 10 | . 5 . . . . . 5 Fabricators . | . . . . . . . . Repair Stations . | . . . . . . . . Recycling Units . | . . . . . . . . Scanalyzers . | . . . . . . . . Garrison Access . | . . . . . . . . Data Cores Recovered . | . . . . . . . . Used . | . . . . . . . . Hacking Detections 11 | . 4 . . 1 . . 6 Full Trace Events 6 | . 2 . . 1 . . 3 Feedback Events . | . . . . . . . . Feedback Blocked . | . . . . . . . . Robot Schematics Acquired . | . . . . . . . . Robots Built . | . . . . . . . . Authchips . | . . . . . . . . Time . | . . . . . . . . Total Robot Build Rating . | . . . . . . . . Part Schematics Acquired . | . . . . . . . . Parts Built . | . . . . . . . . Authchips . | . . . . . . . . Time . | . . . . . . . . Total Part Build Rating . | . . . . . . . . Parts Repaired . | . . . . . . . . Time . | . . . . . . . . Parts Recycled . | . . . . . . . . Recycled Matter . | . . . . . . . . Retrieved Matter . | . . . . . . . . Retrieved Components 3 | . . . . . . . 3 Parts Scanalyzed . | . . . . . . . . Part Schematics Acquired . | . . . . . . . . Parts Damaged . | . . . . . . . . Bothacking | -11 -10 -10 -9 -9 -9 -8 -8 ------------ Run | Yrd Mat Min Mat Min Exi Min Mat Used RIF Installer . | . . . . . . . . Robots Hacked . | . . . . . . . . Non-combat . | . . . . . . . . Combat . | . . . . . . . . Robot Hacks Applied . | . . . . . . . . Relay Couplers Released . | . . . . . . . . Fabnet Peak Effective % . | . . . . . . . . Robots Rewired . | . . . . . . . . Allies Hacked . | . . . . . . . . Hacks Repelled . | . . . . . . . . Allies | -11 -10 -10 -9 -9 -9 -8 -8 -------- Run | Yrd Mat Min Mat Min Exi Min Mat Total Allies 1 | . . 1 . . . . . Largest Group 1 | . . 1 1 1 . . . Highest-Rated Group 31 | . . 31 31 31 . . . Highest-Rated Ally 31 | . . 31 31 31 . . . Total Orders . | . . . . . . . . Ally Attacks 33 | . . . 23 10 . . . Total Damage 460 | . . . 289 171 . . . Kills 8 | . . . 5 3 . . . Allies Corrupted . | . . . . . . . . Allies Melted . | . . . . . . . . Intel | -11 -10 -10 -9 -9 -9 -8 -8 ------- Run | Yrd Mat Min Mat Min Exi Min Mat Robot Analysis Total . | . . . . . . . . Derelict Logs Recovered 3 | . . 1 . 2 . . . Drone Launches . | . . . . . . . . Drone Recoveries . | . . . . . . . . Exploration | -11 -10 -10 -9 -9 -9 -8 -8 ------------- Run | Yrd Mat Min Mat Min Exi Min Mat Turns Passed 4353 | . 576 702 169 1313 378 153 1062 Spaces Moved 2156 | 1 355 258 73 636 242 69 522 Core 6 | . . 6 . . . . . Treads 9 | . . . . . . . 9 Legs 2096 | 1 355 228 55 636 242 69 510 Wheels 42 | . . 24 18 . . . . Hover 3 | . . . . . . . 3 Flight . | . . . . . . . . Fastest Speed 46 | 120 120 95 95 190 120 120 46 Average Speed 158 | 120 134 184 164 190 153 126 127 Slowest Speed 350 | 120 190 350 190 190 190 130 190 Overloaded Moves . | . . . . . . . . Propulsion Burnouts . | . . . . . . . . Robots Hopped . | . . . . . . . . Cave-ins Triggered . | . . . . . . . . Exploration Rate (%) 46 | 2 72 67 17 92 62 22 37 Regions Visited 7 Branch Regions 4 Pre-discovered Areas 1 | . . . . 1 . . . Known Exits Taken 1 | . 1 . . . . . . Unknown Exits Taken 6 | 1 . 1 1 1 1 1 . Scrap Searched 3 | . . 1 . 2 . . . Spaces Dug . | . . . . . . . . Terrain Destroyed 1 | . . . 1 . . . . Melee . | . . . . . . . . Projectile 1 | . . . 1 . . . . AOE . | . . . . . . . . Terrain Rammed . | . . . . . . . . Walls Destroyed . | . . . . . . . . Machines Disabled . | . . . . . . . . Actions | -11 -10 -10 -9 -9 -9 -8 -8 --------- Run | Yrd Mat Min Mat Min Exi Min Mat Total 2743 | . 394 453 109 686 249 97 755 Wait 268 | . 1 170 13 10 . . 74 Move 2149 | . 354 257 72 635 241 68 522 Hop . | . . . . . . . . Pick Up 34 | . . . 2 1 4 1 26 Fast Attach 22 | . 2 1 6 2 1 1 9 Attach 26 | . . 8 . 1 . 1 16 Detach 16 | . 1 . 4 1 1 1 8 Swap 15 | . 5 . . 2 . 2 6 Drop 5 | . 2 . . . 2 . 1 Fire 155 | . 29 17 12 7 . 23 67 Melee 53 | . . . . 27 . . 26 Ram . | . . . . . . . . Kick . | . . . . . . . . Crush . | . . . . . . . . Escape Stasis . | . . . . . . . . Rewire . | . . . . . . . . Trap . | . . . . . . . . Miscellaneous . | . . . . . . . . Route ------- -11/Scrapyard -10/Materials (discovered 3 exits: [*Mat x2] / *Min) -10/Mines -9/Materials -9/Mines (discovered 3 exits: *Mat x2 / *Exi) -9/Exiles (discovered 2 exits: [*Min x2]) -8/Mines -8/Materials History --------- Turn | Location | Event 1 | -11/Scrapyard | Discovered new exit (range 0) 1 | -11/Scrapyard | Entered Materials 71 | -10/Materials | Identified exit to Mines 174 | -10/Materials | Discovered new exit (range 6) 318 | -10/Materials | Build established: Mutant 328 | -10/Materials | Discovered new exit (range 15) 577 | -10/Materials | Entered Mines 590 | -10/Mines | Met a Derelict bent on vengeance 773 | -10/Mines | Learned Materials terminal intel 1024 | -10/Mines | Assembled infested the area 1190 | -10/Mines | Core integrity fell below 50% 1196 | -10/Mines | Core integrity fell below 20% 1248 | -10/Mines | Lost 10 parts (2p4n4w) 1258 | -10/Mines | Discovered new exit (range 11) 1261 | -10/Mines | Received a Mining Laser from a helpful Derelict 1279 | -10/Mines | Entered Materials 1279 | -9/Materials | Accompanied by 1 ally 1279 | -9/Materials | Evolved 2 slots: Utility x2 1280 | -9/Materials | Loaded intel: 12 terminal locations 1405 | -9/Materials | Discovered new exit (range 16) 1448 | -9/Materials | Entered Mines 1448 | -9/Mines | Accompanied by 1 ally 1516 | -9/Mines | Learned Materials interactive machine intel 1628 | -9/Mines | Build established: Scavenger-Mutant 1789 | -9/Mines | Learned location of Recycling (-9) 2228 | -9/Mines | Met a Derelict who couldn't figure out how to use a Trap Extractor 2359 | -9/Mines | Discovered new exit (range 5) 2530 | -9/Mines | Discovered new exit (range 5) 2752 | -9/Mines | Deemed a non-threat by the Exiles lab entrance 2754 | -9/Mines | Discovered new exit (range 5) 2761 | -9/Mines | Entered Exiles 2786 | -9/Exiles | Discovered new exit (range 16) 2807 | -9/Exiles | Met 8R-AWN 2839 | -9/Exiles | Met EX-HEX 2894 | -9/Exiles | Met EX-BIN 2915 | -9/Exiles | Aligned with FarCom system 2917 | -9/Exiles | Given EX-Vault access code 2961 | -9/Exiles | Opened EX-Vault 2983 | -9/Exiles | Found Lightpack 2.0 3025 | -9/Exiles | Exiles lab attacked by MAIN.C 3128 | -9/Exiles | Discovered new exit (range 11) 3139 | -9/Exiles | Left Exiles lab with Lightpack 2.0 3139 | -9/Exiles | Entered Mines 3155 | -8/Mines | Core integrity fell below 50% 3271 | -8/Mines | Discovered new exit (range 5) 3286 | -8/Mines | Build established: Hauler-Mutant 3292 | -8/Mines | Entered Materials 3292 | -8/Materials | Evolved 2 slots: Utility x2 3293 | -8/Materials | Loaded intel: 19 interactive machine locations 4218 | -8/Materials | Core integrity fell below 50% 4250 | -8/Materials | Lost 8 parts (2p2n1u3w) 4326 | -8/Materials | Lost 3 parts (1p1n1u) 4327 | -8/Materials | Core integrity fell below 20% 4354 | -8/Materials | Destroyed by X-57 Shotgunner with Shotgun Last Messages --------------- K-01 Serf collects debris. G-47 Trooper suffers critical hit (Smash). Destroyed Aluminum Leg. Destroyed Lgt. Nuclear Core. G-47 Trooper system corrupted by crushing effect. G-47 Trooper knocked back. K-01 Serf collects debris. K-01 Serf cleans the Terminal. K-01 Serf collects debris. G-47 Trooper suffers critical hit (Smash). G-47 Trooper destroyed. Identified Aerolev Unit. Faulty integration triggers heat surge (+462). Mace destroyed. Acquired 50 matter. Overheating: System interference. Adv. Visual Processing Unit temporarily disabled. Lgt. Deuterium Engine destroyed. Map ----- +----------------------------------------------------+ | ?????????????????????????????????????????????????? | | ?????????????????????????????????????????????????? | | ?????????????????????????????????????????????????? | | ?????????????????????????????????????????????????? | | ?????????????????????????????????????????????????? | | ?????????????????????????????????????????????????? | | ?????????????????????????????????????????????????? | | ?????????????????????????????????????????????????? | | ?????????????????????????????????????????????????? | | ?????????????????????????????????????????????????? | | ???????????????????????????????????????????"""""?? | | ???????????????????????????????????????????""T""?? | | ?????????????????????????????????????????????????? | | ?????????????????????????????????????????????????? | | ##??????????????????????????????"?"??????????????? | | #??????????????????????????????"R"??????????????? | | #????????????????????????????+?"""??????????????? | | !#???????o???????????????????????????????????????? | | #????????????????????????#########??????????????? | | #????????????????????????# w???????????????? | | !#????????????????????????# ?????????o??????? | | #?????????????????######## ?????????????????? | | #?????????????????# # #?###??????????????? | | ##?????????????????#"" # # ???????????????? | | ???????????????????#"T #% # ????????????????? | | ????????############"" @gg + ?????????????????? | | ????????# = ## =#gg #??????+???????????? | | ????????# ## x# #??????????????????? | | ????????# ######### ##?????????????????? | | ????????# """ ######## #?????????????????? | | ????????# """ # !%=%*% #?????????????????? | | ????????# """ "T" # %==%= #?????????????????? | | #???????# """ #*=!=%* #?????????????????? | | #???????#! #%#*#### #?????????????????? | | #???????#####+#######=##########?????????????????? | | ########### #####%######## #?????????????? | | # % #?????????????? | | # % #?????????????? | | # " #??????????""?? | | + """"" # #########g ## / #??????????"T?? | | # """"" #######???????? #???? ##??????????""?? | | # """" #??????????????? #????????????????????? | | # """ ##??????"""?????? #????????????????????? | | #??????"""???????#????????????????????? | | + """???R"????????????????????????????? | | # """??"""????????????????????????????? | | ######## #?????????????????????????????????????? | | ???????# #?????????????????????????????????????? | | ???????# #?????????????????????????????????????? | | ???????# #???+?????????????"S??????????????????? | +----------------------------------------------------+ Best States ------------- Heat Dissipation 45 Energy Generation 14 Energy Capacity 265 Matter Stores 300 Matter Capacity 300 Sight Range 20 Terrain Scan Density 10 Additional Mass Support 6 Base Temperature (-) 100 Armor Coverage 225 Evasion (%) 55 Melee Accuracy 5 Recoil Reduction 2 Item Schematics ----------------- None Robot Schematics ------------------ None Fabricated ------------ Nothing Alien Tech Used ----------------- None Achievements -------------- Packrat Challenges ------------ None Game ------ Seed AngularBiocellCutter Manual? 0 Play Time 00:34:00 Cumulative 55.2 hours Start 2024.04.13 @ 21:06:31 End 2024.04.13 @ 21:40:23 Sessions 1 Manual Loads 0 Difficulty Rogue Special Mode None Game No. 130 Rogue 128 Adventurer 2 Explorer 0 Win Type - Total 0 Types 0/0/0/0/0/0/0/0/0 Lore% 33 Gallery% 41 Achievement% 32 Wizard Run 0 Options --------- Layout 2 ASCII 0 Keyboard 1 Movement Numpad Keybinds 1 Fullscreen 2 Font 24/Smallcaps Map View 50x44 Zoom Use 0% Tactical HUD 1 Map Filters NONE Filters NONE Steam 1 RUN: 36106dd2-0337-4b40-b9bd-9995cf3b4d84